Workbook

Sheet Sheet1
B1: CARD NO. | C1: 60869 | D1: =COUNTIF($B:$B,$C$1) -> 2 | H1: 316
C2: TYPING DATE | D2: AMOUNT | E2: REMARKS
C3: =IFERROR(INDEX($D$11:$F$1000002,_xlfn.AGGREGATE(15,3,($C$1=$B:$B)/($C$1=$B:$B)*ROW($B:$B)-10,ROW($A1)),MATCH(C$2,$D$10:$F$10,0)),"") -> 2017-06-15 | D3: =IFERROR(INDEX($D$11:$F$1000002,_xlfn.AGGREGATE(15,3,($C$1=$B:$B)/($C$1=$B:$B)*ROW($B:$B)-10,ROW($A1)),MATCH(D$2,$D$10:$F$10,0)),"") -> 253 | E3: =IFERROR(INDEX($D$11:$F$1000002,_xlfn.AGGREGATE(15,3,($C$1=$B:$B)/($C$1=$B:$B)*ROW($B:$B)-10,ROW($A1)),MATCH(E$2,$D$10:$F$10,0)),"") -> renewal
C4: =IFERROR(INDEX($D$11:$F$1000002,_xlfn.AGGREGATE(15,3,($C$1=$B:$B)/($C$1=$B:$B)*ROW($B:$B)-10,ROW($A2)),MATCH(C$2,$D$10:$F$10,0)),"") -> 2019-06-19 | D4: =IFERROR(INDEX($D$11:$F$1000002,_xlfn.AGGREGATE(15,3,($C$1=$B:$B)/($C$1=$B:$B)*ROW($B:$B)-10,ROW($A2)),MATCH(D$2,$D$10:$F$10,0)),"") -> 253 | E4: =IFERROR(INDEX($D$11:$F$1000002,_xlfn.AGGREGATE(15,3,($C$1=$B:$B)/($C$1=$B:$B)*ROW($B:$B)-10,ROW($A2)),MATCH(E$2,$D$10:$F$10,0)),"") -> renewal
C5: =IFERROR(INDEX($D$11:$F$1000002,_xlfn.AGGREGATE(15,3,($C$1=$B:$B)/($C$1=$B:$B)*ROW($B:$B)-10,ROW($A3)),MATCH(C$2,$D$10:$F$10,0)),"") ->  | D5: =IFERROR(INDEX($D$11:$F$1000002,_xlfn.AGGREGATE(15,3,($C$1=$B:$B)/($C$1=$B:$B)*ROW($B:$B)-10,ROW($A3)),MATCH(D$2,$D$10:$F$10,0)),"") ->  | E5: =IFERROR(INDEX($D$11:$F$1000002,_xlfn.AGGREGATE(15,3,($C$1=$B:$B)/($C$1=$B:$B)*ROW($B:$B)-10,ROW($A3)),MATCH(E$2,$D$10:$F$10,0)),"") -> 
C6: =IFERROR(INDEX($D$11:$F$1000002,_xlfn.AGGREGATE(15,3,($C$1=$B:$B)/($C$1=$B:$B)*ROW($B:$B)-10,ROW($A4)),MATCH(C$2,$D$10:$F$10,0)),"") ->  | D6: =IFERROR(INDEX($D$11:$F$1000002,_xlfn.AGGREGATE(15,3,($C$1=$B:$B)/($C$1=$B:$B)*ROW($B:$B)-10,ROW($A4)),MATCH(D$2,$D$10:$F$10,0)),"") ->  | E6: =IFERROR(INDEX($D$11:$F$1000002,_xlfn.AGGREGATE(15,3,($C$1=$B:$B)/($C$1=$B:$B)*ROW($B:$B)-10,ROW($A4)),MATCH(E$2,$D$10:$F$10,0)),"") -> 
C7: =IFERROR(INDEX($D$11:$F$1000002,_xlfn.AGGREGATE(15,3,($C$1=$B:$B)/($C$1=$B:$B)*ROW($B:$B)-10,ROW($A5)),MATCH(C$2,$D$10:$F$10,0)),"") ->  | D7: =IFERROR(INDEX($D$11:$F$1000002,_xlfn.AGGREGATE(15,3,($C$1=$B:$B)/($C$1=$B:$B)*ROW($B:$B)-10,ROW($A5)),MATCH(D$2,$D$10:$F$10,0)),"") ->  | E7: =IFERROR(INDEX($D$11:$F$1000002,_xlfn.AGGREGATE(15,3,($C$1=$B:$B)/($C$1=$B:$B)*ROW($B:$B)-10,ROW($A5)),MATCH(E$2,$D$10:$F$10,0)),"") -> 
C8: =IFERROR(INDEX($D$11:$F$1000002,_xlfn.AGGREGATE(15,3,($C$1=$B:$B)/($C$1=$B:$B)*ROW($B:$B)-10,ROW($A6)),MATCH(C$2,$D$10:$F$10,0)),"") ->  | D8: =IFERROR(INDEX($D$11:$F$1000002,_xlfn.AGGREGATE(15,3,($C$1=$B:$B)/($C$1=$B:$B)*ROW($B:$B)-10,ROW($A6)),MATCH(D$2,$D$10:$F$10,0)),"") ->  | E8: =IFERROR(INDEX($D$11:$F$1000002,_xlfn.AGGREGATE(15,3,($C$1=$B:$B)/($C$1=$B:$B)*ROW($B:$B)-10,ROW($A6)),MATCH(E$2,$D$10:$F$10,0)),"") -> 
A9: 1 | B9: emareats id
A10: S.NO | B10: CARD NO. | D10: TYPING DATE | E10: AMOUNT | F10: REMARKS
A11: 1 | B11: 89536 | C11: =IFERROR(VLOOKUP(B11,ashraf,3,1),"") -> pss adh | D11: 2017-01-12 | E11: 252.5 | F11: renewal
A12: 2 | B12: 89538 | C12: pss adh | D12: 2017-01-14 | E12: 252.5 | F12: renewal
A13: 3 | B13: 90583 | C13: nce rak | D13: 2017-01-14 | E13: 252.5 | F13: renewal
A14: 4 | B14: 11593 | C14: smc dxb | D14: 2017-01-14 | E14: 252.5 | F14: renewal
A15: 5 | B15: 11592 | C15: smc dxb | D15: 2017-01-14 | E15: 252.5 | F15: renewal
A16: 6 | B16: 6372 | C16: smc adh | D16: 2017-01-14 | E16: 252.5 | F16: renewal
A17: 7 | B17: 11587 | C17: smc dxb | D17: 2017-01-14 | E17: 252.5 | F17: renewal
A18: 8 | B18: 11591 | C18: smc dxb | D18: 2017-01-14 | E18: 252.5 | F18: renewal
A19: 9 | B19: 86153 | C19: sjc adh | D19: 2017-01-14 | E19: 252.5 | F19: renewal
A20: 10 | B20: 5959 | C20: smc adh | D20: 2017-01-14 | E20: 252.5 | F20: renewal
A21: 11 | B21: 10722 | C21: smc dxb | D21: 2017-01-14 | E21: 252.5 | F21: renewal
A22: 12 | B22: 13399 | C22: nce adh | D22: 2017-01-14 | E22: 252.5 | F22: renewal
A23: 13 | B23: 11505 | C23: smc dxb | D23: 2017-01-14 | E23: 252.5 | F23: renewal
A24: 14 | B24: 11506 | C24: smc dxb | D24: 2017-01-14 | E24: 252.5 | F24: renewal
A25: 15 | B25: 12125 | C25: nce adh | D25: 2017-01-14 | E25: 252.5 | F25: renewal
A26: 16 | B26: 12097 | C26: nce adh | D26: 2017-01-14 | E26: 252.5 | F26: renewal
A27: 17 | B27: 12087 | C27: nce adh | D27: 2017-01-14 | E27: 252.5 | F27: renewal
A28: 18 | B28: 12066 | C28: nce adh | D28: 2017-01-14 | E28: 252.5 | F28: renewal
A29: 19 | B29: 12063 | C29: nce adh | D29: 2017-01-14 | E29: 252.5 | F29: renewal
A30: 20 | B30: 7189 | C30: nce adh | D30: 2017-01-14 | E30: 252.5 | F30: renewal
A31: 21 | B31: 13358 | C31: nce adh | D31: 2017-01-14 | E31: 252.5 | F31: renewal
A32: 22 | B32: 12137 | C32: nce adh | D32: 2017-01-14 | E32: 252.5 | F32: renewal
A33: 23 | B33: 2908 | C33: nce adh | D33: 2017-01-14 | E33: 252.5 | F33: renewal
A34: 24 | B34: 90264 | C34: nce rak | D34: 2017-01-14 | E34: 252.5 | F34: renewal
A35: 25 | B35: 78422 | C35: nce dxb | D35: 2017-01-14 | E35: 252.5 | F35: renewal
A36: 26 | B36: 60618 | C36: nce shj | D36: 2017-01-14 | E36: 252.5 | F36: renewal
A37: 27 | B37: 52035 | C37: smc adh | D37: 2017-01-14 | E37: 252.5 | F37: renewal
A38: 28 | B38: 7194 | C38: nce adh | D38: 2017-01-14 | E38: 252.5 | F38: renewal
A39: 29 | B39: 12057 | C39: nce adh | D39: 2017-01-14 | E39: 252.5 | F39: renewal
A40: 30 | B40: 13390 | C40: nce adh | D40: 2017-01-14 | E40: 252.5 | F40: renewal
A41: TOTAL | E41: =SUM(E11:E40) -> 7575
A43: 2 | B43: emareats id
A44: S.NO | B44: CARD NO. | D44: TYPING DATE | E44: AMOUNT | F44: REMARKS | H44: 050-7601132
A45: 1 | B45: 12209 | C45: =IFERROR(VLOOKUP(B45,ashraf,3,1),"") -> nce adh | D45: 2017-01-18 | E45: 252.5 | F45: renewal
A46: 2 | B46: 12082 | C46: nce adh | D46: 2017-01-18 | E46: 252.5 | F46: renewal
A47: 3 | B47: 12022 | C47: nce adh | D47: 2017-01-18 | E47: 252.5 | F47: renewal
A48: 4 | B48: 2910 | C48: nce adh | D48: 2017-01-18 | E48: 252.5 | F48: renewal
A49: 5 | B49: 80365 | C49: nce aln | D49: 2017-01-18 | E49: 252.5 | F49: renewal
A50: 6 | B50: 12025 | C50: nce adh | D50: 2017-01-18 | E50: 252.5 | F50: renewal
A51: 7 | B51: 15463 | C51: nce adh | D51: 2017-01-18 | E51: 252.5 | F51: renewal
A52: 8 | B52: 90582 | C52: nce rak | D52: 2017-01-18 | E52: 252.5 | F52: renewal
A53: 9 | B53: 13228 | C53: nce adh | D53: 2017-01-18 | E53: 252.5 | F53: renewal
A54: 10 | B54: 12148 | C54: nce adh | D54: 2017-01-18 | E54: 252.5 | F54: renewal
A55: 11 | B55: 12095 | C55: nce adh | D55: 2017-01-18 | E55: 252.5 | F55: renewal
A56: 12 | B56: 70298 | C56: nce dxb | D56: 2017-01-18 | E56: 252.5 | F56: renewal
A57: 13 | B57: 78456 | C57: nce dxb | D57: 2017-01-18 | E57: 252.5 | F57: renewal
A58: 14 | B58: 90626 | C58: nce rak | D58: 2017-01-18 | E58: 252.5 | F58: renewal
A59: 15 | B59: 60643 | C59: nce shj | D59: 2017-01-18 | E59: 252.5 | F59: renewal
A60: 16 | B60: 60642 | C60: nce shj | D60: 2017-01-18 | E60: 252.5 | F60: renewal
A61: 17 | B61: 11553 | C61: smc dxb | D61: 2017-01-18 | E61: 252.5 | F61: renewal
A62: 18 | B62: 91008 | C62: nce rak | D62: 2017-01-18 | E62: 252.5 | F62: renewal
A63: 19 | B63: 488 | C63: nce adh | D63: 2017-01-18 | E63: 252.5 | F63: renewal
A64: 20 | B64: 70281 | C64: nce dxb | D64: 2017-01-18 | E64: 252.5 | F64: renewal
A65: 21 | B65: 6680 | C65: smc adh | D65: 2017-01-18 | E65: 252.5 | F65: renewal
A66: 22 | B66: 2125 | C66: nce adh | D66: 2017-01-18 | E66: 252.5 | F66: renewal
A67: 23 | B67: 6379 | C67: smc adh | D67: 2017-01-18 | E67: 252.5 | F67: renewal
A68: 24 | B68: 60641 | C68: nce shj | D68: 2017-01-18 | E68: 252.5 | F68: renewal
A69: 25 | B69: 78423 | C69: nce dxb | D69: 2017-01-18 | E69: 252.5 | F69: renewal
A70: TOTAL | E70: =SUM(E45:E69) -> 6312.5
A72: 3
A73: S.NO | B73: CARD NO. | D73: TYPING DATE | E73: AMOUNT | F73: REMARKS
A74: 1 | B74: 72741 | D74: 2017-01-23 | E74: 252.5 | F74: renewal
A75: 2 | B75: 2895 | D75: 2017-01-23 | E75: 252.5 | F75: renewal
A76: 3 | B76: 2935 | D76: 2017-01-23 | E76: 252.5 | F76: renewal
A77: 4 | B77: 12090 | D77: 2017-01-23 | E77: 252.5 | F77: renewal
A78: 5 | B78: 12186 | D78: 2017-01-23 | E78: 252.5 | F78: renewal
A79: 6 | B79: 13376 | D79: 2017-01-23 | E79: 252.5 | F79: renewal
A80: 7 | B80: 13349 | D80: 2017-01-23 | E80: 252.5 | F80: renewal
A81: 8 | B81: 78430 | D81: 2017-01-23 | E81: 252.5 | F81: renewal
A82: 9 | B82: 11507 | D82: 2017-01-23 | E82: 252.5 | F82: new
A83: 10 | B83: 11522 | D83: 2017-01-23 | E83: 252.5 | F83: new
A84: 11 | B84: 11523 | D84: 2017-01-23 | E84: 252.5 | F84: new
A85: 12 | B85: 60669 | D85: 2017-01-23 | E85: 252.5 | F85: renewal
A86: 13 | B86: 90265 | D86: 2017-01-23 | E86: 252.5 | F86: renewal
A87: 14 | B87: 11518 | D87: 2017-01-23 | E87: 252.5 | F87: new
A88: 15 | B88: 11519 | D88: 2017-01-23 | E88: 252.5 | F88: new
A89: 16 | B89: 11520 | D89: 2017-01-23 | E89: 252.5 | F89: new
A90: 17 | B90: 11515 | D90: 2017-01-23 | E90: 252.5 | F90: new
A91: 18 | B91: 11516 | D91: 2017-01-23 | E91: 252.5 | F91: new
A92: 19 | B92: 72739 | D92: 2017-01-23 | E92: 252.5 | F92: renewal
A93: 20 | B93: 12235 | D93: 2017-01-23 | E93: 252.5 | F93: renewal
A94: 21 | B94: 12146 | D94: 2017-01-23 | E94: 252.5 | F94: renewal
A95: 22 | B95: 13400 | D95: 2017-01-23 | E95: 252.5 | F95: renewal
A96: 23 | B96: 12272 | D96: 2017-01-23 | E96: 252.5 | F96: renewal
A97: 24 | B97: 13353 | D97: 2017-01-23 | E97: 252.5 | F97: renewal
A98: 25 | B98: 60604 | D98: 2017-01-23 | E98: 252.5 | F98: renewal
A99: TOTAL | E99: =SUM(E74:E98) -> 6312.5
A101: 4
A102: S.NO | B102: CARD NO. | D102: TYPING DATE | E102: AMOUNT | F102: REMARKS | G102: 4
A103: 1 | B103: 60605 | D103: 2017-01-28 | E103: 252.5 | F103: renewal | G103: 4
A104: 2 | B104: 2863 | D104: 2017-01-28 | E104: 252.5 | F104: renewal | G104: 4
A105: 3 | B105: 12037 | D105: 2017-01-28 | E105: 252.5 | F105: renewal | G105: 4
A106: 4 | B106: 90609 | D106: 2017-01-28 | E106: 252.5 | F106: renewal | G106: 4
A107: 5 | B107: 13391 | D107: 2017-01-28 | E107: 252.5 | F107: renewal | G107: 4
A108: 6 | B108: 13362 | D108: 2017-01-28 | E108: 252.5 | F108: renewal | G108: 4
A109: 7 | B109: 90580 | D109: 2017-01-28 | E109: 252.5 | F109: renewal | G109: 4
A110: 8 | B110: 4713 | D110: 2017-01-28 | E110: 252.5 | F110: renewal | G110: 4
A111: 9 | B111: 12232 | D111: 2017-01-28 | E111: 252.5 | F111: renewal | G111: 4
A112: 10 | B112: 13334 | D112: 2017-01-28 | E112: 252.5 | F112: renewal | G112: 4
A113: 11 | B113: 72090 | D113: 2017-01-28 | E113: 252.5 | F113: new | G113: 4
A114: 12 | B114: 13389 | D114: 2017-01-28 | E114: 252.5 | F114: new | G114: 4
A115: 13 | B115: 2878 | D115: 2017-01-28 | E115: 252.5 | F115: new | G115: 4
A116: 14 | B116: 11540 | D116: 2017-01-28 | E116: 252.5 | F116: new | G116: 4
A117: 15 | B117: 11521 | D117: 2017-01-28 | E117: 252.5 | F117: new | G117: 4
A118: 16 | B118: 11524 | D118: 2017-01-28 | E118: 252.5 | F118: new | G118: 4
A119: 17 | B119: 11525 | D119: 2017-01-28 | E119: 252.5 | F119: new | G119: 4
A120: 18 | B120: 11542 | D120: 2017-01-28 | E120: 252.5 | F120: new | G120: 4
A121: 19 | B121: 11543 | D121: 2017-01-28 | E121: 252.5 | F121: new | G121: 4
A122: 20 | B122: 11544 | D122: 2017-01-28 | E122: 252.5 | F122: new | G122: 4
A123: 21 | B123: 11545 | D123: 2017-01-28 | E123: 252.5 | F123: new | G123: 4
A124: 22 | B124: 11546 | D124: 2017-01-28 | E124: 252.5 | F124: new | G124: 4
A125: 23 | B125: 11547 | D125: 2017-01-28 | E125: 252.5 | F125: new | G125: 4
A126: 24 | B126: 11550 | D126: 2017-01-28 | E126: 252.5 | F126: new | G126: 4
A127: 25 | B127: 11552 | D127: 2017-01-28 | E127: 252.5 | F127: new | G127: 4
A128: TOTAL | E128: =SUM(E103:E127) -> 6312.5 | G128: 4
G129: 4
A130: 5
A131: S.NO | B131: CARD NO. | D131: TYPING DATE | E131: AMOUNT | F131: REMARKS
A132: 1 | B132: 11526 | D132: 2017-01-30 | E132: 252.5 | F132: new
A133: 2 | B133: 11527 | D133: 2017-01-30 | E133: 252.5 | F133: new
A134: 3 | B134: 11528 | D134: 2017-01-30 | E134: 252.5 | F134: new
A135: 4 | B135: 11529 | D135: 2017-01-30 | E135: 252.5 | F135: new
A136: 5 | B136: 11534 | D136: 2017-01-30 | E136: 252.5 | F136: new
A137: 6 | B137: 11535 | D137: 2017-01-30 | E137: 252.5 | F137: new
A138: 7 | B138: 11531 | D138: 2017-01-30 | E138: 252.5 | F138: new
A139: 8 | B139: 11533 | D139: 2017-01-30 | E139: 252.5 | F139: new
A140: 9 | B140: 11530 | D140: 2017-01-30 | E140: 252.5 | F140: new
A141: 10 | B141: 11532 | D141: 2017-01-30 | E141: 252.5 | F141: new
A142: 11 | B142: 11517 | D142: 2017-01-30 | E142: 252.5 | F142: new
A143: 12 | B143: 11541 | D143: 2017-01-30 | E143: 252.5 | F143: new
A144: 13 | B144: 11536 | D144: 2017-01-30 | E144: 252.5 | F144: new
A145: 14 | B145: 11539 | D145: 2017-01-30 | E145: 252.5 | F145: new
A146: 15 | B146: 11538 | D146: 2017-01-30 | E146: 252.5 | F146: new
A147: 16 | B147: 11554 | D147: 2017-01-30 | E147: 252.5 | F147: new
A148: 17 | B148: 11555 | D148: 2017-01-30 | E148: 252.5 | F148: new
A149: 18 | B149: 11537 | D149: 2017-01-30 | E149: 252.5 | F149: new
A150: 19 | B150: 213 | D150: 2017-01-30 | E150: 252.5 | F150: new
A151: 20 | B151: 852 | D151: 2017-01-30 | E151: 252.5 | F151: new
A152: 21 | B152: 12054 | D152: 2017-01-30 | E152: 252.5 | F152: new
A153: 22 | B153: 1931 | D153: 2017-01-30 | E153: 252.5 | F153: new
A154: 23 | B154: 11504 | D154: 2017-01-30 | E154: 252.5 | F154: new
A155: 24 | B155: 6394 | D155: 2017-01-30 | E155: 252.5 | F155: new
A156: 25 | B156: 90602 | D156: 2017-01-30 | E156: 252.5 | F156: new
A157: TOTAL | E157: =SUM(E132:E156) -> 6312.5
A159: 6
A160: S.NO | B160: CARD NO. | D160: TYPING DATE | E160: AMOUNT | F160: REMARKS
A161: 1 | B161: 72496 | D161: 2017-01-30 | E161: 252.5 | F161: new
A162: 2 | B162: 90294 | D162: 2017-01-30 | E162: 252.5 | F162: new
A163: 3 | B163: 239 | D163: 2017-01-30 | E163: 252.5 | F163: new
A164: 4 | B164: 7183 | D164: 2017-01-30 | E164: 252.5 | F164: new
A165: 5 | B165: 90661 | D165: 2017-01-30 | E165: 252.5 | F165: new
A166: 6 | B166: 11508 | D166: 2017-01-30 | E166: 252.5 | F166: new
A167: 7 | B167: 11513 | D167: 2017-01-30 | E167: 252.5 | F167: new
A168: 8 | B168: 11512 | D168: 2017-01-30 | E168: 252.5 | F168: new
A169: 9 | B169: 11511 | D169: 2017-01-30 | E169: 252.5 | F169: new
A170: 10 | B170: 11510 | D170: 2017-01-30 | E170: 252.5 | F170: new
A171: 11 | B171: 11509 | D171: 2017-01-30 | E171: 252.5 | F171: new
A172: 12 | B172: 11514 | D172: 2017-01-30 | E172: 252.5 | F172: new
A173: 13 | B173: 10233 | D173: 2017-01-30 | E173: 252.5 | F173: renewal
A174: 14 | B174: 2915 | D174: 2017-01-30 | E174: 252.5 | F174: renewal
A175: 15 | B175: 12030 | D175: 2017-01-30 | E175: 252.5 | F175: renewal
A176: 16 | B176: 80390 | D176: 2017-01-31 | E176: 252.5 | F176: renewal
A177: 17 | B177: 11557 | D177: 2017-01-31 | E177: 252.5 | F177: renewal
A178: 18 | B178: 11548 | D178: 2017-01-31 | E178: 252.5 | F178: renewal
A179: 19 | B179: 72089 | D179: 2017-01-31 | E179: 252.5 | F179: renewal
A180: 20 | B180: 70325 | D180: 2017-01-31 | E180: 252.5 | F180: renewal
A181: 21 | B181: 90635 | D181: 2017-01-31 | E181: 252.5 | F181: renewal
A182: 22 | B182: 90513 | D182: 2017-01-31 | E182: 252.5 | F182: renewal
A183: 23 | B183: 90286 | D183: 2017-01-31 | E183: 252.5 | F183: renewal
A184: 24 | B184: 60672 | D184: 2017-01-31 | E184: 252.5 | F184: renewal
A185: 25 | B185: 87501 | D185: 2017-01-31 | E185: 252.5 | F185: renewal
A186: TOTAL | E186: =SUM(E161:E185) -> 6312.5
A188: 7 | B188: emareats id
A189: S.NO | B189: CARD NO. | D189: TYPING DATE | E189: AMOUNT | F189: REMARKS
A190: 1 | B190: 72285 | D190: 2017-02-01 | E190: 252.5 | F190: renewal
A191: 2 | B191: 4728 | D191: 2017-02-01 | E191: 252.5 | F191: renewal
A192: 3 | B192: 2924 | D192: 2017-02-01 | E192: 252.5 | F192: renewal
A193: 4 | B193: 78492 | D193: 2017-02-01 | E193: 252.5 | F193: renewal
A194: 5 | B194: 60625 | D194: 2017-02-01 | E194: 1252.5 | F194: renewal
A195: 6 | B195: 12253 | D195: 2017-02-01 | E195: 252.5 | F195: renewal
A196: 7 | B196: 4716 | D196: 2017-02-01 | E196: 252.5 | F196: renewal
A197: 8 | B197: 10273 | D197: 2017-02-01 | E197: 252.5 | F197: renewal
A198: 9 | B198: 6728 | D198: 2017-02-01 | E198: 252.5 | F198: renewal
A199: 10 | B199: 5954 | D199: 2017-02-01 | E199: 252.5 | F199: renewal
A200: 11 | B200: 80410 | D200: 2017-02-01 | E200: 252.5 | F200: renewal
A201: 12 | B201: 6370 | D201: 2017-02-01 | E201: 252.5 | F201: renewal
A202: 13 | B202: 86148 | D202: 2017-02-01 | E202: 252.5 | F202: renewal
A203: 14 | B203: 90630 | D203: 2017-02-01 | E203: 252.5 | F203: renewal
A204: 15 | B204: 90261 | D204: 2017-02-01 | E204: 252.5 | F204: renewal
A205: 16 | B205: 78462 | D205: 2017-02-01 | E205: 252.5 | F205: renewal
... 6336 more rows
